{"text_format":"1","workbook":"xlsx","n_sheets":22,"sheets":["Home","PH topics","Screening division","SD control ","NWSSP","NWSSP control","Welsh Government","WG control","Observatory","Oral health","SAIL","VPDP","VPDP control","WAPSU","WAPSU control","Welsh Cancer Intelligence","WCI control","NWIS","Observatory control","SAIL control","Oral health control","NWIS control"],"not_rendered":{"charts":10,"images":1,"macros":1,"external_links":1,"defined_names":0,"comments":0,"pivot_tables":0},"unopened":[],"bounds":{"document_bytes":16777216,"sheet_cells":100000,"rows_first":2000,"rows_last":500,"rows_between":2000,"halvings":0,"cell_chars":16384,"cell_head_chars":4096},"cells_cut":0,"cells_raw":0,"read":"whole","date_system":"1900"}

{"sheet":"Home","index":0,"n_rows":37,"n_cols":2,"rows_kept":37,"cut":false,"hidden":false,"merged":[[30,1,32,11]]}
["v1 Apr 2019"]
[]
[]
[]
[]
[]
[]
[]
[]
[]
[]
[]
[null,"Or select a provider below"]
[]
[]
[]
[]
[]
[]
[]
[]
[]
[]
[]
[]
[]
[]
[]
[]
[null,"Please note that these buttons will not work until you click 'Enable this content' via the security warning dialogue above."]
[null,"This information has been colated by the PHW Primary Care Hub. The aim of the document is to take stock of the current primary care health intelligence offerings, with particular reference to the timing of product releases relative to cluster action planning cycles."]
[]
[]
[null,"For more information and to download the latest version of this spreadsheet, please visit:"]
[null,"http://www.primarycareone.wales.nhs.uk/data-and-health-intelligence"]
[]
[null,"Please provide feedback by contacting: PrimaryCare.One@wales.nhs.uk"]

{"sheet":"PH topics","index":1,"n_rows":37,"n_cols":7,"rows_kept":37,"cut":false,"hidden":false,"merged":[]}
[]
[]
[]
[]
[]
[]
[]
[]
[null,"Useful links to data and evidence (actions), sorted by Public Health topic"]
[null,null,"Well-being",null,"Burden of disease",null,"Behavioural risk factors"]
[null,"Data","PHOF - Mental well-being among adults","Data","Observatory - CHD prevalence","Data","Observatory - Smoking"]
[null,"Action","PHOF - Mental well-being among adults","Data","PCIP - COPD","Data","Observatory - Alcohol misuse"]
[null,"Action","PHOF - Mental well-being among children & young people","Data","PCIP - Diabetes","Data","Observatory - Physical activity"]
[null,"Action","PHOF - People feeling lonely","Data","WCISU - Cancer Mortality","Data","Observatory - Healthy eating"]
[null,"Action","PHW Making a difference report","Data","Observatory - Health & determinants (DALYS)","Data","Observatory - Lifestyle and social factors"]
[null,null,null,"Data","Observatory - Measuring inequalities (HLE)","Data","Observatory - Teenage pregnancy"]
[null,null,null,"Data","Observatory - Chronic conditions registers","Action","Observatory- Teenage pregnancy"]
[null,null,null,"Data","WCISU - Cancer incidence and prevalence","Action","PHOF - Physical activity in adolescents"]
[null,null,null,null,null,"Action","PHOF - Adolescents drinking sugary drinks once a day or more"]
[null,null,null,null,null,"Action","PHOF - Adults eating five fruit or vegtable portions a day"]
[null,null,null,null,null,"Action","PHOF - Adults meeting physical activity guidelines"]
[null,null,null,null,null,"Action","PHOF - Children age five of a healthy weight or underweight"]
[null,null,null,null,null,"Action","PHOF - Adolescents of healthy weight"]
[null,null,null,null,null,"Action","PHOF - Working age adults of healthy weight"]
[null,null,null,null,null,"Action","PHW Making a difference report"]
[]
[null,null,"Clinical risk factors",null,"Screening",null,"Vaccination"]
[null,"Data","PHOF - obesity","Data","PCIP - AAA","Data","COVER (childhood immunisation)"]
[null,"Data","PCIP - Obesity QoF prevalence","Data","PCIP - Bowel","Data","IVOR (flu)"]
[null,"Data","PCIP - Hypertension QoF prevalence","Data","PCIP - Breast","Action","PHOF - Vaccination rates at age 4"]
[null,null,"Cholesterol","Data","PCIP - Cervical"]
[null,null,"Fasting plasma glucose"]
[null,"Action","PHW Making a difference report"]
[]
[null,null,"Demographics",null,"For more information and to download the latest version of this spreadsheet, please visit:"]
[null,"Data","Observatory - Age/sex profile & population projection",null,"http://www.primarycareone.wales.nhs.uk/data-and-health-intelligence"]
[null,"Data","PHOF - Deprivation & Age/sex profile",null,"Please provide feedback by contacting: PrimaryCare.One@wales.nhs.uk"]

{"sheet":"Screening division","index":2,"n_rows":7,"n_cols":15,"rows_kept":7,"cut":false,"hidden":false,"merged":[[0,0,0,10]]}
["Informatics Division Updated 23/04/2019"]
[]
[]
["Product  title:","Product reference:","Product status (e.g. current, proposed):","Other provider input/ co-dependency:","Product summary/ scope:","Best-fit single keyword summary (e.g. diabetes):","Product location/ URL:","Availability (public/ restricted):","Planned release date of product (at least to month):","Frequency of release or one-off?:","Linked strategic priorities:","Enquiries/ primary contact:","Main data source(s) utilised (e.g. Audit+):","Geography(ies) of reporting e.g. LSOA, cluster:","Intended audience(s):"]
["Bowel screening uptake by GP Cluster 2017-18","SD1","Current","N/A","Bowel screening uptake, 2017-18, by Health Board and GP Cluster","bowel, screening, wales, uptake, clusters","http://www.bowelscreening.wales.nhs.uk/statistical-reports","Public","2020-01-01","Annual","To provide screening programmes which assist the early detection, prevention and treatment of disease","Screening.Information@wales.nhs.uk","Public Health Wales, Informatics & Data Services data warehouse","Health Board, GP Cluster, LA","Directors of Public Health, GP Cluster Leads, public"]
["Breast screening uptake by GP Cluster latest round as at November 2018","SD2","Current","N/A","Breast screening uptake, latest round as at November 2018, by Health Board and GP Cluster","breast, screening, wales, uptake, clusters","http://www.breasttestwales.wales.nhs.uk/reports-1","Public","2020-01-01","Annual","To provide screening programmes which assist the early detection, prevention and treatment of disease","Screening.Information@wales.nhs.uk","Public Health Wales, Informatics & Data Services data warehouse","Health Board, GP Cluster, LA","Directors of Public Health, GP Cluster Leads, public"]
["Cervical screening coverage by GP Cluster 2017-18","SD3","Current","N/A","Cervical screening 5 year coverage, as at 01/04/18, by Health Board and GP Cluster","cervical, screening, wales, coverage, clusters","http://www.cervicalscreeningwales.wales.nhs.uk/statistical-reports","Public","2020-01-01","Annual","To provide screening programmes which assist the early detection, prevention and treatment of disease","Screening.Information@wales.nhs.uk","Public Health Wales, Informatics & Data Services data warehouse","Health Board, GP Cluster, LA","Directors of Public Health, GP Cluster Leads, public"]

{"sheet":"SD control ","index":3,"n_rows":4,"n_cols":8,"rows_kept":4,"cut":false,"hidden":true,"merged":[]}
["Product","Product update due","# Days to complete","PDPs and annual report due:",43616,null,null,"April 1st: 43556"]
[{"$f":"'Screening division'!$B5&\" - \"&'Screening division'!$A5","v":"SD1 - Bowel screening uptake by GP Cluster 2017-18"},{"$f":"'Screening division'!$I5","v":"2020-01-01"},10,"Cluster action plan due: ",43676,null,null,"July 1st: 42917"]
[{"$f":"'Screening division'!$B6&\" - \"&'Screening division'!$A6","v":"SD2 - Breast screening uptake by GP Cluster latest round as at November 2018"},{"$f":"'Screening division'!$I6","v":"2020-01-01"},10,"Chart begins:",43556,null,null,"October 1st: 43007"]
[{"$f":"'Screening division'!$B7&\" - \"&'Screening division'!$A7","v":"SD3 - Cervical screening coverage by GP Cluster 2017-18"},{"$f":"'Screening division'!$I7","v":"2020-01-01"},10,"Chart ends:",43921,null,null,"January 1st: 43097"]

{"sheet":"NWSSP","index":4,"n_rows":9,"n_cols":15,"rows_kept":9,"cut":false,"hidden":false,"merged":[[0,0,0,10]]}
["NHS Wales Shared Services Partnership Updated 20/09/2018"]
[]
[]
["Product  title:","Product reference:","Product status (e.g. current, proposed):","Other provider input/ co-dependency:","Product summary/ scope:","Best-fit single keyword summary (e.g. diabetes):","Product location/ URL:","Availability (public/ restricted):","Planned release date of product (at least to month):","Frequency of release or one-off?:","Linked strategic priorities:","Enquiries/ primary contact:","Main data source(s) utilised (e.g. Audit+):","Geography(ies) of reporting e.g. LSOA, cluster:","Intended audience(s):"]
["CASPA.net","NWSSP1","Current","None","An interactive analysis tool that delivers aggregated dispensed prescription medication data by BNF, Prescriber and time hierachies","Prescribing","http://howis.wales.nhs.uk/sites3/page.cfm?orgid=428&pid=27954","Restricted to NHS Wales","Live","Monthly data update",null,"prescribing.management@wales.nhs.uk","Prescription Pricing data warehouse","GP Practice, Cluster, Health Board","NHS Wales"]
["Control Charts","NWSSP2","Current","None","An interactive analysis tool  that enables the user to monitor the prescribing of unusual quantities in selected baskets of dispensed products","Prescribing","http://howis.wales.nhs.uk/sites3/page.cfm?orgid=428&pid=7981","Restricted to NHS Wales","Live","Monthly data update",null,"prescribing.management@wales.nhs.uk","Prescription Pricing data warehouse","GP Practice, Cluster, Health Board","NHS Wales"]
["Catalogue","NWSSP3","Current","None","An online tool that catalogues prescribing by BNF hierarchy with a facility to drill down to an image of the dispensed prescription from which the data is derived.","Prescribing","http://howis.wales.nhs.uk/sites3/page.cfm?orgid=428&pid=6864","Restricted to NHS Wales","Live","Monthly data update",null,"prescribing.management@wales.nhs.uk","Prescription Pricing data warehouse","GP Practice, Cluster, Health Board","NHS Wales"]
["GP Practice Prescribing Data Extract","NWSSP4","Current","None","Flat text extract of all dispensed prescription medication data attributed to the GP practice that issued them. Includes look up files that enable aggregation through the BNF and prescriber organisation hierarchies.","Prescribing","http://www.primarycareservices.wales.nhs.uk/general-practice-prescribing-data-extrac","Public","Live","Monthly",null,"prescribing.management@wales.nhs.uk","Prescription Pricing data warehouse","GP Practice, Cluster, Health Board","Public"]
["Hospital Prescribing Data Extract","NWSSP5","Current","None","Flat text extract of all dispensed WP10HP (hospital outpatient) prescription medication data attributed to the hospital department that issued them. Includes look up files that enable aggregation through the BNF and prescriber organisation hierarchies.","Prescribing","http://www.primarycareservices.wales.nhs.uk/hospital-prescribing-data-extract","Public","Live","Monthly",null,"prescribing.management@wales.nhs.uk","Prescription Pricing data warehouse","Hospital, Health Board","Public"]

{"sheet":"NWSSP control","index":5,"n_rows":11,"n_cols":8,"rows_kept":11,"cut":false,"hidden":true,"merged":[]}
["Product","Due Date","# Days to complete","PDPs and annual report due:",43251,null,null,"April 1st: 42827"]
[{"$f":"'Welsh Government'!$B5&\" - \"&'Welsh Government'!$A5","v":"WG1 - Prescriptions dispensed in the community"},{"$f":"'Welsh Government'!I5","v":"2018-05-18"},2.8,"Cluster action plan due: ",43311,null,null,"May 1st: 42857"]
[{"$f":"'Welsh Government'!$B6&\" - \"&'Welsh Government'!$A6","v":"WG2 - Sensory health: Eye care and hearing statistics"},{"$f":"'Welsh Government'!I6","v":"2018-06-28"},2.8,"Chart begins:",43191,null,null,"June 1st: 42887"]
[{"$f":"'Welsh Government'!$B7&\" - \"&'Welsh Government'!$A7","v":"WG3 - Births in Wales"},{"$f":"'Welsh Government'!I7","v":"2018-08-10"},2.8,"Chart ends:",43555,null,null,"July 1st: 42917"]
[{"$f":"'Welsh Government'!$B8&\" - \"&'Welsh Government'!$A8","v":"WG4 - NHS dental services"},{"$f":"'Welsh Government'!I8","v":"2018-08-25"},2.8,null,null,null,null,"August 1st: 42947"]
[{"$f":"'Welsh Government'!$B9&\" - \"&'Welsh Government'!$A9","v":"WG5 - Prescriptions by GPs"},{"$f":"'Welsh Government'!I9","v":"2018-09-14"},2.8,null,null,null,null,"September 1st:42977"]
[{"$f":"'Welsh Government'!$B10&\" - \"&'Welsh Government'!$A10","v":"WG6 - Community pharmacy services"},{"$f":"'Welsh Government'!I10","v":"2018-10-17"},2.8,null,null,null,null,"October 1st: 43007"]
[{"$f":"'Welsh Government'!$B11&\" - \"&'Welsh Government'!$A11","v":"WG7 - General medical services contract: Quality and outcomes framework"},{"$f":"'Welsh Government'!I11","v":"2018-10-19"},2.8,null,null,null,null,"November 1st: 43037"]
[{"$f":"'Welsh Government'!$B12&\" - \"&'Welsh Government'!$A12","v":"WG8 - Community dental services"},{"$f":"'Welsh Government'!I12","v":"2018-11-30"},2.8,null,null,null,null,"December 1st: 43067"]
[{"$f":"'Welsh Government'!$B13&\" - \"&'Welsh Government'!$A13","v":"WG9 - GP Access"},{"$f":"'Welsh Government'!I13","v":"2019-02-22"},2.8,null,null,null,null,"January 1st: 43097"]
[{"$f":"'Welsh Government'!$B14&\" - \"&'Welsh Government'!$A14","v":"WG10 - GPs in Wales"},{"$f":"'Welsh Government'!I14","v":"2019-03-29"},2.8]

{"sheet":"Welsh Government","index":6,"n_rows":14,"n_cols":15,"rows_kept":14,"cut":false,"hidden":false,"merged":[[0,0,0,10]]}
["Welsh Government Updated 20/09/2018"]
[]
[]
["Product  title:","Product reference:","Product status (e.g. current, proposed):","Other provider input/ co-dependency:","Product summary/ scope:","Best-fit single keyword summary (e.g. diabetes):","Product location/ URL:","Availability (public/ restricted):","Planned release date of product (at least to month):","Frequency of release or one-off?:","Linked strategic priorities:","Enquiries/ primary contact:","Main data source(s) utilised (e.g. Audit+):","Geography(ies) of reporting e.g. LSOA, cluster:","Intended audience(s):"]
["Prescriptions dispensed in the community","WG1","current","NHS Wales Shared Services Partnership.","This release presents a summary of prescriptions dispensed in the community and provides the annual Prescription Cost Analysis (PCA) data, highlighting the main trends.","Prescriptions","http://gov.wales/statistics-and-research/prescriptions-dispensed-community/?lang=en","public","2018-05-18","Annual","Welsh Government primary care policy; see -  http://gov.wales/topics/health/nhswales/plans/care/?lang=en","stats.healthinfo@wales.gsi.gov.uk","Prescribing Services, NHS Wales Shared Services Partnership.","Wales, UK","National Assembly, Welsh Government, NHS, public, academics"]
["Sensory health: Eye care and hearing statistics","WG2","current","NHS Wales Shared Services Partnership, Diabetic Eye Screening Wales, Low Vision Service Wales, Moorfields Eye Hospital, NHS Wales Informatics Services, Local Authorites, NHS Digital","This Statistical Release aims to provide a summary of currently provided sensory care services in the context of poor eye health and hearing loss being common and growing problems in Wales and to present data which is available from routine administrative sources. These statistics help to monitor delivery of current services and provide evidence from which current eye health and audiology policies can be evaluated.","Sensory health","http://gov.wales/statistics-and-research/eye-care/?lang=en","public","2018-06-28","Annual","Welsh Government primary care policy; see -  http://gov.wales/topics/health/nhswales/plans/care/?lang=en",{"$f":"[1]Metadata!B8","v":"High level information"},"General Ophthalmic Service (GOS) forms, Outpatient Referral Dataset, Referral to treatment times (RTT), Patient Episode Database for Wales, Form SSDA900, Workforce Statistics for England and Wales, Welsh Health Survey, National Survey for Wales","Wales, LHB","Welsh Eye Care service, National Assembly, Welsh Government, NHS, public, academics"]
["Births in Wales","WG3","current","NHS Wales Informatics Service (NWIS)","The release provides statistics on where and when babies were born, their birth weight, whether they were preterm and about their mothers - their age and whether the babies were breastfed.","Births","http://gov.wales/statistics-and-research/births-national-community-child-health-database/?lang=en","public","2018-08-10","Annual",null,"stats.healthinfo@wales.gsi.gov.uk","National Community Child Health Database (NCCHD)","Wales, LHB, Local Authority","LHBs, National Assembly, Welsh Government, NHS, public, academics"]
["NHS dental services","WG4","current","Dental Services, NHS Business Services Authority","This Release provides a summary of completed activity during 2015–16 by NHS dentists. It includes data on the quantity of activity completed, treatment undertaken, dental workforce, number of patients treated within the past 24 months, and orthodontic activity. The statistics are based on any NHS dental work completed by a NHS dentist, which has been submitted for payment.","Dental","http://gov.wales/statistics-and-research/nhs-dental-services/?lang=en ","public","2018-08-25","Annual Release and quarterly StatsWales updates","Welsh Government primary care policy; see -  http://gov.wales/topics/health/nhswales/plans/care/?lang=en","stats.healthinfo@wales.gsi.gov.uk","Dental Services, NHS Business Services Authority","Wales, LHB","Dentists,  National Assembly, Welsh Government, NHS, public, academics"]
["Prescriptions by GPs","WG5","current","NHS Wales Shared Services Partnership","This release gives information on items which were prescribed by GPs in Wales, and dispensed, during the year. These are referred to in the release as items ‘prescribed’ by GPs. Items prescribed but not dispensed are excluded. The release also highlights the main trends and patterns in prescribing over previous years, and aims to provide statistical context for current prescribing policy in Wales.","Prescriptions","http://gov.wales/statistics-and-research/prescriptions-general-medical-practitioners/?lang=en","public","2018-09-14","Annual","Welsh Government primary care policy; see -  http://gov.wales/topics/health/nhswales/plans/care/?lang=en","stats.healthinfo@wales.gsi.gov.uk","Prescribing Services, NHS Wales Shared Services Partnership","Wales, LHB","National Assembly, Welsh Government, NHS, public, academics"]
["Community pharmacy services","WG6","current","NHS Wales Shared Services Partnership, Health Boards","This annual release presents information about community pharmacies in Wales in contract with Health Boards (LHBs). The main services which community pharmacies are accredited to provide are described and summarised for the current year and for previous years since the introduction of the current community pharmacy contractual framework in April 2005.","Pharmacy","http://gov.wales/statistics-and-research/community-pharmacy-services/?lang=en","public","2018-10-17","Annual","Welsh Government primary care policy; see -  http://gov.wales/topics/health/nhswales/plans/care/?lang=en","stats.healthinfo@wales.gsi.gov.uk","Pharmacy Services, NHS Wales Shared Services Partnership","Wales, LHB, Local Authority","National Assembly, Welsh Government, Community pharmacies, GPs, NHS, public, academics"]
["General medical services contract: Quality and outcomes framework","WG7","current","NHS Wales Informatics Service","This release presents a summary of data from the national General Medical Services (GMS) Quality and Outcomes Framework (QOF). The Quality and Outcomes Framework (QOF) is a system of financial incentives. It is about rewarding contractors for good practice (and its associated workload) through participation in an annual quality improvement cycle.","QOF","http://gov.wales/statistics-and-research/general-medical-services-contract/?lang=en","public","2018-10-19","Annual","Welsh Government primary care policy; see -  http://gov.wales/topics/health/nhswales/plans/care/?lang=en","stats.healthinfo@wales.gsi.gov.uk","CM Web, Audit+","Wales, LHB, cluster, practice","GPs,  National Assembly, Welsh Government, NHS, public, academics"]
["Community dental services","WG8","current","Community Dental Services","This annual statistical release presents a summary of the activity of the Community Dental Service (CDS) in Wales.","CDS","http://gov.wales/statistics-and-research/community-dental-services/?lang=en","public","2018-11-30","Annual","Welsh Government primary care policy; see -  http://gov.wales/topics/health/nhswales/plans/care/?lang=en","stats.healthinfo@wales.gsi.gov.uk","Community dental activity returns (CDSWR) from Community Dental Services","Wales, CDS","CDS, National Assembly, Welsh Government, NHS, public, academics"]
["GP Access","WG9","current","Health Boards","This annual Statistical First Release provides information on GP opening hours and appointment times of every GP practices (main surgery) for each of the seven Health Boards in Wales. The main purpose of this release is to give an overview of practice opening hours and appointment times, enhancing the evidence base in relation to access to GPs. It presents information which will aid further policy development, as well as enabling monitoring of access to GP practices at the Health Board and national level.","GP","http://gov.wales/statistics-and-research/gp-access-wales/?lang=en","public","2019-02-22","Annual","Welsh Government primary care policy; see -  http://gov.wales/topics/health/nhswales/plans/care/?lang=en","stats.healthinfo@wales.gsi.gov.uk","Health Boards","Wales, LHB","GPs,  National Assembly, Welsh Government, NHS, public, academics"]
["GPs in Wales","WG10","current","NHS Digital, NHS Wales Shared Services Partnership, Information Services Division Scotland, Business Services Organisation (Northern Ireland)","A profile of the GP workforce in Wales, presented in terms of type of GPs (including GP registrars and locums), age, gender, workforce flows, Welsh language ability and qualifications in charts, tables and maps. Summaries of key figures by GP practices and primary care clusters are also provided in separate spreadsheets.","GP","http://gov.wales/statistics-and-research/general-medical-practitioners/?lang=en","public","2019-03-29","Annual","Welsh Government primary care policy; see -  http://gov.wales/topics/health/nhswales/plans/care/?lang=en","stats.healthinfo@wales.gsi.gov.uk","GP Census","Wales, LHB, cluster, practice","GPs,  National Assembly, Welsh Government, NHS, public, academics"]

{"sheet":"WG control","index":7,"n_rows":11,"n_cols":8,"rows_kept":11,"cut":false,"hidden":true,"merged":[]}
["Product","Due Date","# Days to complete","PDPs and annual report due:",43251,null,null,"April 1st: 42827"]
[{"$f":"'Welsh Government'!$B5&\" - \"&'Welsh Government'!$A5","v":"WG1 - Prescriptions dispensed in the community"},{"$f":"'Welsh Government'!I5","v":"2018-05-18"},2.8,"Cluster action plan due: ",43311,null,null,"May 1st: 42857"]
[{"$f":"'Welsh Government'!$B6&\" - \"&'Welsh Government'!$A6","v":"WG2 - Sensory health: Eye care and hearing statistics"},{"$f":"'Welsh Government'!I6","v":"2018-06-28"},2.8,"Chart begins:",43191,null,null,"June 1st: 42887"]
[{"$f":"'Welsh Government'!$B7&\" - \"&'Welsh Government'!$A7","v":"WG3 - Births in Wales"},{"$f":"'Welsh Government'!I7","v":"2018-08-10"},2.8,"Chart ends:",43555,null,null,"July 1st: 42917"]
[{"$f":"'Welsh Government'!$B8&\" - \"&'Welsh Government'!$A8","v":"WG4 - NHS dental services"},{"$f":"'Welsh Government'!I8","v":"2018-08-25"},2.8,null,null,null,null,"August 1st: 42947"]
[{"$f":"'Welsh Government'!$B9&\" - \"&'Welsh Government'!$A9","v":"WG5 - Prescriptions by GPs"},{"$f":"'Welsh Government'!I9","v":"2018-09-14"},2.8,null,null,null,null,"September 1st:42977"]
[{"$f":"'Welsh Government'!$B10&\" - \"&'Welsh Government'!$A10","v":"WG6 - Community pharmacy services"},{"$f":"'Welsh Government'!I10","v":"2018-10-17"},2.8,null,null,null,null,"October 1st: 43007"]
[{"$f":"'Welsh Government'!$B11&\" - \"&'Welsh Government'!$A11","v":"WG7 - General medical services contract: Quality and outcomes framework"},{"$f":"'Welsh Government'!I11","v":"2018-10-19"},2.8,null,null,null,null,"November 1st: 43037"]
[{"$f":"'Welsh Government'!$B12&\" - \"&'Welsh Government'!$A12","v":"WG8 - Community dental services"},{"$f":"'Welsh Government'!I12","v":"2018-11-30"},2.8,null,null,null,null,"December 1st: 43067"]
[{"$f":"'Welsh Government'!$B13&\" - \"&'Welsh Government'!$A13","v":"WG9 - GP Access"},{"$f":"'Welsh Government'!I13","v":"2019-02-22"},2.8,null,null,null,null,"January 1st: 43097"]
[{"$f":"'Welsh Government'!$B14&\" - \"&'Welsh Government'!$A14","v":"WG10 - GPs in Wales"},{"$f":"'Welsh Government'!I14","v":"2019-03-29"},2.8]

{"sheet":"Observatory","index":8,"n_rows":19,"n_cols":15,"rows_kept":19,"cut":false,"hidden":false,"merged":[[0,0,0,10]]}
["Observatory Updated 20/09/2018"]
[]
[]
["Product  title:","Product reference:","Product status (e.g. current, proposed):","Other provider input/ co-dependency:","Product summary/ scope:","Best-fit single keyword summary (e.g. diabetes):","Product location/ URL:","Availability (public/ restricted):","Planned release date of product (at least to month):","Frequency of release or one-off?:","Linked strategic priorities:","Enquiries/ primary contact:","Main data source(s) utilised (e.g. Audit+):","Geography(ies) of reporting e.g. LSOA, cluster:","Intended audience(s):"]
["Coronary Heart Disease modelled prevalence analysis (2015)","OBS1 - CHD","Current",null,"The model estimates GP cluster level CHD prevalence using self reported heart disease data from the Welsh Health Survey and compares it with the QOF CHD register prevalence.","CHD","http://www.publichealthwalesobservatory.wales.nhs.uk/home","Public","N/A","One-off",null,"publichealthwalesobservatory@wales.nhs.uk","QOF, Welsh Health Survey","GP Cluster","Public health system"]
["Demography 2016","OBS2 - Demography","Current",null,"A publication bringing together the latest data on demography, the study of populations, births and deaths, in Wales.  ","Demography","http://www.publichealthwalesobservatory.wales.nhs.uk/home ","Public","N/A","No immediate plan to update this product but elements of it may be updated in future.",null,"publichealthwalesobservatory@wales.nhs.uk","As per technical guides","Wales / Health Board / Local Authority / LSOA / MSOA","Public health system"]
["Ethnicity and health","OBS3 - Ethnicity","Current",null,"This report provides a description of the ethnic make-up of Wales, together with information on the determinants of health and health outcomes they experience, using 2011 Census as the data source.","Ethnicity","http://www.publichealthwalesobservatory.wales.nhs.uk/ethnicity-profile","Public","N/A","One-off.",null,"publichealthwalesobservatory@wales.nhs.uk","2011 Census, Office for National Statistics (ONS)","Wales / Local Authority","Public health system."]
["GP Cluster Profiles 2013","OBS4 - Cluster","Current",null,"The profiles aim to provide information on a number of key indicators in relation to GP cluster populations. They contain descriptive analysis of the registered population in terms of its geographic spread, age/sex structure, deprivation, rural/urban characteristics and access to primary care. In addition, the profiles contain information on chronic disease for a number of conditions that have a high impact on services. Please note: some of the information in these profiles has been updated in the GP Practice profiles.","Cluster","http://www.publichealthwalesobservatory.wales.nhs.uk/home","Public","N/A","One-off, though some elements have been updated",null,"publichealthwalesobservatory@wales.nhs.uk","As per technical guide","GP cluster","Public Health System"]
["General Practice Population Profiles (2015)","OBS5 - Population","Current",null,"The profiles aim to provide information on a number of key indicators in relation to GP practice populations. They contain descriptive analysis of the registered population in terms of its age/sex structure, deprivation, rural/urban characteristics and health behaviours. In addition, the profiles contain information on chronic disease for a number of conditions that have a high impact on services. The practice profiles include a population based peer grouping exercise, allowing practices to compare themselves with similar practices across Wales. Please note: the information on chronic conditions has recently been updated and provided via email to all Cluster leads ahead of official publication on the website.","Population","http://www.publichealthwalesobservatory.wales.nhs.uk/home","Public","N/A","One-off though some elements have been updated",null,"publichealthwalesobservatory@wales.nhs.uk",null,"GP practice","Public Health System"]
["Health assets reporting tool","OBS6 - Assets","Current",null,"This interactive tool shows indicators of health assets for small areas in Wales across a range of topics from the following domains - people, community and structure. ","Assets","http://www.publichealthwalesobservatory.wales.nhs.uk/home ","Public","N/A","one-off",null,"publichealthwalesobservatory@wales.nhs.uk","As per technical guide","MSOA, Local Authority, Health Board, Wales","Public health system"]
["Measuring Inequalities 2016","OBS7 - Inequalities","Current",null,"This publication demonstrates the large and persistent inequalities in life expectancy within Wales, echoing the findings of the original Measuring inequalities profile published in 2011.","Inequalities","http://www.publichealthwalesobservatory.wales.nhs.uk/measuring-inequalities-2016-overview","Public","N/A","One-off",null,"publichealthwalesobservatory@wales.nhs.uk","As per technical guide","Local Authority and Health Board, MSOA","Public health system"]
["Pregnancy and childhood surveillance tool (2017)","OBS8 - Pregnancy","Current","N/A","This interactive surveillance tool focuses on the health of children and the health of women during pregnancy. The Early Years Programme has been set up to explore how expertise from service, academia, policy and others can be brought together to focus on early years - giving every child a healthy start. This tool comprises of a suite of indicators:\n\nPoverty and homelessness\nChildren in need\nOverweight / obesity\nTeenage conceptions and live births\nDecayed, missing and filled teeth\nEmergency admissions for injury\nSocial worker provision","Pregnancy ","http://www.publichealthwalesobservatory.wales.nhs.uk/pregnancychildhood","Public","N/A","one-off","Public Health Wales Early Years Programme.","publichealthwalesobservatory@wales.nhs.uk","As per technical guide","Wales/Health Board/Local Authority","Public Health system"]
["Public Health Outcomes Framework","OBS9 - Well-being","Current","Welsh Government","The Public Health Outcomes Framework was developed to help understand the impact which individual behaviours, public services, programmes and policies have on health and well-being in Wales. The reporting tool presents data on 40 key indicators from the framework. The topics covered include life expectancy, healthy life expectancy, children in poverty, education, loneliness, community, smoking, physical activity, alcohol, diet, pregnancy, admissions and deaths","Well-being","http://www.publichealthwalesobservatory.wales.nhs.uk/phof","Public","Update scheduled for September 2017","Quarterly (Mar, Jun, Sep, Dec)",null,"publichealthwalesobservatory@wales.nhs.uk","as per technical guide","Currently: Wales, health board and local authority\n\nFrom September: USOA, MSOA and LSOA will also be available","Public health system"]
["Quality and Outcomes Framework: atrial fibrillation and hypertension data","OBS10 - QOF(AF)","Current",null,"The Public Health Wales Observatory has published information at GP cluster level relating to atrial fibrillation, stroke and hypertension. The publication uses data from the chronic conditions registers and the clinical domains of the quality and outcomes framework (QOF).","QOF(AF)","http://www.publichealthwalesobservatory.wales.nhs.uk/home","Public","N/A","One-off",null,"publichealthwalesobservatory@wales.nhs.uk","QOF","GP Cluster","Public Health System"]
["Ward level teenage conceptions by health board","OBS11 - Teenage","Current",null,"A series of health board documents outlining teenage conception and abortion rates in Wales for 2010-12.","Teenage","http://www.publichealthwalesobservatory.wales.nhs.uk/home","Restricted (Intranet only)","N/A","Annual",null,"publichealthwalesobservatory@wales.nhs.uk","ONS","Ward level (electoral divisions)","Public health system"]
["Welsh health survey trends","OBS12 - Survey","Current",null,"This resource is based on data from the Welsh Health Survey from 2003/04 to 2014. It focuses on a suite of indicators covering smoking habits, alcohol consumption, fruit and vegetable consumption, physical activity levels and levels of overweight and obesity.","survey","http://www.publichealthwalesobservatory.wales.nhs.uk/home","Public","N/A","Annual",null,"publichealthwalesobservatory@wales.nhs.uk","as per technical guide","Local Authority and Health Board","Public Health System"]
["Social prescribing evidence map:  technical and summary reports","OBS13 - Social","Current","Input from colleagues working in the health and social care system within Wales who contributed to the initial scoping of this work and Bruce McKenzie, Consultant in Public Health, Primary and Community Care Development and Innovation Hub, who provided advice and support for this project. ","The Public Health Wales Observatory Evidence Service has produced this evidence map and narrative summary to enable the Primary and Community Care Development and Innovation Hub to share evidence related to the effectiveness and practice of social prescribing in support of colleagues looking to implement these interventions within primary and community care settings across Wales.","Social prescribing","http://www2.nphs.wales.nhs.uk:8080/PubHObservatoryProjDocs.nsf/0/d8aba77d02cf471c80258148002ad093/$FILE/Social%20prescribing%20summary%20report%20v1%20GROUPWARE.pdf","Public","N/A","One off","Strategic objective 3a, Public Health Wales Intergrated Medium Term Plan 2017-2020.  By the end of 2019/20 we will have worked with health boards and other partners to support a sustainable primary and community care system fit for future generations.","Sian Price, Head of Observatory Evidence Service. Email:Sian.price@wales.nhs.uk","Sensitive search of  13 core  and 5 specialist data bases including : BNI; CINAHL; Cochrane Library; EMBASE; HMIC;  Medline; NHS Evidence; NICE and PsycINFO, 10 websites and 8 topic specific websites for sources published  in peer reviewed journals and grey literature\n","N/A","Primary and Community Care Development and Innovation Hub, local public health teams, Welsh Government, HB Directors of Primary and Community Care, local authorities, regional partnership boards, public services boards, voluntary agencies."]
["Health and its determinants in Wales interim report","OBS14 - Determinants","Interim report released (intranet only)\nFinal report to be published towards the end of November","N/A","The Health and its determinants in Wales report provides an overview of the health and well-being of the population of Wales, including the burden of disease.  It outlines the main causes of death, disability and illness which make up the picture of health in Wales. The report was undertaken to assist Public Health Wales in the development of its long term strategy and help to identify the priority areas the strategy will seek to address","Burden of disease","http://nww.publichealthwalesobservatory.wales.nhs.uk/bod","Intranet","N/A","one-off","Public Health Wales Long Term Strategy","publichealthwalesobservatory@wales.nhs.uk","As per technical guide","Wales","Public Health system"]
["Well-being of Future Generations Act: National Indicator Projections by local authority","OBS15 - Future","Current","N/A","This product aims to use past patterns in health behaviours to describe what might happen if in the fututre we continue down the same path. The models consider Obesity, healthy eating, smoking, Healthy Life Expectancy and low birth weight.","Projections","https://public.tableau.com/profile/publichealthwalesobservatory#!/vizhome/WBFGProjectionsLocalauthorities/Home?:iid&:tabs=no","Public","N/A","one-off","Well-being of Future Generations Act","publichealthwalesobservatory@wales.nhs.uk","As per technical guide","Wales/Health Board/Local Authority","Public Health system/ Public bodies "]

{"sheet":"Oral health","index":9,"n_rows":5,"n_cols":15,"rows_kept":5,"cut":false,"hidden":false,"merged":[[0,0,0,10]]}
["Oral health Updated 20/09/2018"]
[]
[]
["Product  title:","Product reference:","Product status (e.g. current, proposed):","Other provider input/ co-dependency:","Product summary/ scope:","Best-fit single keyword summary (e.g. diabetes):","Product location/ URL:","Availability (public/ restricted):","Planned release date of product (at least to month):","Frequency of release or one-off?:","Linked strategic priorities:","Enquiries/ primary contact:","Main data source(s) utilised (e.g. Audit+):","Geography(ies) of reporting e.g. LSOA, cluster:","Intended audience(s):"]
["Oral Health Surveillance Data","OH1","Current","LHB staff collect the data. Welsh Oral Health Information Unit lead the data collation, cleaning, analysis and reporting. PHW provide Consultant epidemiologist support including liaison on new surveys and survey design.","The oral health surveillance programme provides data once every 4 years on school year 1 (aged 5-6) and school year 7 (aged 11-12) children. In the intervening years data is collected to cast light on the oral health of groups for whom data is limited or absent. Previous surveys have covered 3 year olds, care home oral health policy and oral health status of care home residents.  In the near future oral health of 18-25 year olds will be covered.","dental","http://www.cardiff.ac.uk/research/explore/research-units/welsh-oral-health-information-unit","Public ","June 2018 (Survey of School Year 7), \nApril 2019 (year 1 of 18-25 year old survey)","Once a year","Data informs needs assessment for Tier 1 LHB oral health plans\nChild data contributes to Child poverty targets and PHOF/future generations indicators\nMonitoring data for Designed to Smile ","Maria Morgan ","Primary surveys","Unitary Authority, Health Board","Welsh Government, Health Boards, dental professionals"]

{"sheet":"SAIL","index":10,"n_rows":6,"n_cols":15,"rows_kept":6,"cut":false,"hidden":false,"merged":[[0,0,0,10]]}
["SAIL Updated 20/09/2018"]
[]
[]
["Product  title:","Product reference:","Product status (e.g. current, proposed):","Other provider input/ co-dependency:","Product summary/ scope:","Best-fit single keyword summary (e.g. diabetes):","Product location/ URL:","Availability (public/ restricted):","Planned release date of product (at least to month):","Frequency of release or one-off?:","Linked strategic priorities:","Enquiries/ primary contact:","Main data source(s) utilised (e.g. Audit+):","Geography(ies) of reporting e.g. LSOA, cluster:","Intended audience(s):"]
["Palliative care report","SAIL1","Published in June 2015","N/A","This report is based on primary care and other datasets held by the SAIL Databank. It aims to better inform practices about their own populations, contributing to service improvements. The subject of this report is end of life care, and in particular the use of the Palliative Care Register (PCR). The study period was from 2008 to 2012.\nThis study looked to support GPs to identify and address issues in relation to delivering high quality end of life care.  The research aimed to provide a report to GPs showing how palliative care at their practices compared to their health board and Wales, with particular focus on:\n- Rate of registration on the PCR by disease group and cause of death\n- Duration on PCR prior to death\n- Place of death (hospital or other), compared to those on the PCR with those not on the PCR.\n","End of life","Contact email","Restricted","2015-06-01","One-off","This piece of work took place as part of a wider project called NISCHR Data Linkage which aimed at increasing the number of GP practcies submitting data to SAIL in Wales. The topic was chosen based on the GP Cluster programme which focused on end of life care in primary care.","Contact saildatabank@swansea.ac.uk","Working with the SAIL Databank, data was linked from the Office of National Statistics Mortality, the Welsh Demographics Service and Primary Care data (GP practices who consented to provide anonymised data to SAIL, about 40% of GP practices in Wales).","This report provides practice level data and LHB data. Each report are only available for individual practices and not shared widely.","GPs and practice staff."]
["Dual Diagnosis of Mental Health Problems and Substance Abuse in Primary Care in South Wales ","SAIL2","Published in June 2015","The project had input from two clinicians to ensure that the research was in line with current practice. Jane Harrison, who is the Assistant Medical Director for Primary Care in ABMU, and Janet Keauffling, who is a Nurse for the Homeless in Swansea High Street surgery, were heavily involved in the design and the delivery of the research.","This report is based on primary care datasets held by the SAIL Databank. It aims to provide a first insight into the magnitude of dual diagnosis at regional level (i.e. Abertawe Bro Morgannwg University Local Health Board (ABMU)) by presenting incidence and prevalence analysis respectively.\nPlease note this report is in essence measuring coding behaviour rather than true incidence and prevalence - only those patients with relevant codes in their GP record will be included in analysis. However the inclusion of Read codes for referral and treatment as well as those for diagnosis will help to maximise data capture.","Mental Health and substance misuse","Contact email","Restricted","2015-06-01","One-off","This piece of work took place as part of a wider project called NISCHR Data Linkage which aimed at increasing the number of GP practcies submitting data to SAIL in Wales. This project was part of the work of ABMU Dual Diagnosis Working Group chaired by Jane Harrison, Assistant Medical Director ( Primary Care) ABMU","Contact saildatabank@swansea.ac.uk","Working with the SAIL Databank, which is anonymised to comply with all data protection rules, Primary Care data from GP practices in Abertawe Bro Morgannwg University Health Board (ABMU) were linked to establish how many people in Wales are currently recorded as suffering with a dual diagnosis.  75% of GP practices in the Health Board participated with the data providing an analysis of the codes used by GP practices to record the conditions associated with Dual Diagnosis.","The report includes locality and cluster level data in ABMU. The results of the analysis should not be used to make comparisons between practices. This is because the current analysis provides a crude, non-standardised estimate of the incidence and prevalence of dual diagnosis without taking into account the differences between practices based on characteristics such as age, gender and deprivation.","GPs, practice staff, mental health services."]

{"sheet":"VPDP","index":11,"n_rows":8,"n_cols":15,"rows_kept":8,"cut":false,"hidden":false,"merged":[[0,0,0,10]]}
["Vaccine Preventable Disease Programme Updated 20/09/2018"]
[]
[]
["Product  title:","Product reference:","Product status (e.g. current, proposed):","Other provider input/ co-dependency:","Product summary/ scope:","Best-fit single keyword summary (e.g. diabetes):","Product location/ URL:","Availability (public/ restricted):","Planned release date of product (at least to month):","Frequency of release or one-off?:","Linked strategic priorities:","Enquiries/ primary contact:","Main data source(s) utilised (e.g. Audit+):","Geography(ies) of reporting e.g. LSOA, cluster:","Intended audience(s):"]
["Weekly Influenza Surveillance Report","VPDP1","Current","Dependant upon GP surveillance data submitted through Audit+, virological surveillance data from hospitals and nonsentinel locations, out of hours data on influenza-like illness and respiratory related vistits and calls, PHE England arranged data from NHS direct shared with PHW, and outbreak surveillance data from local health protection teams. ","Summarises current activity of influenza in Wales in the community and in hospitals.\nGives broad view of burden of disease due to seasonal respiratory illness, including clinical diagnoses rate for influenza like illness, numbers of patients in hospitals and intensive care wards with influenza, and community, care home or hospital outbreaks due to an acute respiratory illness or influenza. ","Flu surveillance","http://howis.wales.nhs.uk/sites3/page.cfm?orgid=457&pid=26956","Public","Weeky, every Wednesday","Weekly",null,"Simon Cottrelll (Senior Epidemiologist) 029 2010 4528; \n\nsimon.cottrell@wales.nhs.uk\n\nRichard Lewis (Information Analyst) 029 2010 4521; richard.lewis6@wales.nhs.uk","Audit +, datastore, out of hours data cube (provided by PHW informatics), NHS direct data, outbreak surveillance data from local health protection teams (will be switching to Tarian for this)","All Wales summary","WAG, Local Health Protection Teams, Immunisation Coordinators, GPs "]
["Influenza Vaccine Online Reporting (IVOR)","VPDP2","Current","Data collected by general practices and reported through Audit+ in Wales. (GPC Wales has given approval for PHW to use Audit+ data for the purpose of disease surveillance and immunisation uptake monitoring). ","The tabs within the IVOR pages summarise flu immunisation uptake data for 2016/17, submitted by general practices through Audit+.","IVOR","http://nww.immunisation.wales.nhs.uk/ivor","Public","Weeky, every Wednesday","Weekly","Priority 6 - Protecting the public and continuously improving the quality, safety, and effectiveness of the services we deliver\n\nPriority 2 - Working across sectors to improve the future health and wellbeing of our children","Simon Cottrelll (Senior Epidemiologist) 029 2010 4528; \nsimon.cottrell@wales.nhs.uk\n\nRichard Lewis (Information Analyst) 029 2010 4521; \nrichard.lewis6@wales.nhs.uk","Audit + ","All Wales summary; Local Health Board; Local Authority ","WAG, Local Health Boards, Local Health Protection Teams, Immunisation Coordinators, GPs "]
["Weekly GP Newsletter","VPDP3","Current","Dependant upon GP surveillance data submitted through Audit+","Summarises current activity of influenza, pneumonia, chicken pox, shingles, measles, mumps, rubella, whooping cough, gastroenteritis, vomiting, severe asthma, heat stroke, bloody diarrhoea in patients seeking care in general practices in Wales. \nThe newsletter also provides a brief update on current news, pieces of interest, or important information for GPs in a newsletter article. ","Surveillance","http://www2.nphs.wales.nhs.uk:8080/CommunitySurveillanceDocs.nsf/3dc04669c9e1eaa880257062003b246b/9aa507144cda809e8025816b002e9719/$FILE/GP%20Newsletter%202017_July28.pdf\n\n\n\nhttp://howis.wales.nhs.uk/sites3/page.cfm?orgid=457&pid=20689","Public","Weekly, every Friday","Weekly","Priority 2 - Working across sectors to improve the future health and wellbeing of our children\n\nPriority 4 - Supporting the NHS to improve outcomes for people using services\n\nPriority 6 - Protecting the public and continuously improving the quality, safety, and effectiveness of the services we deliver","Daniel Thomas, Tel:  029 2010 4490 , email: daniel.thomas@wales.nhs.uk","Audit + ","All Wales summary","GPs "]
["COVER Report","VPDP4","Current","The Child Health Database held at NWIS containing detailed data on vaccine uptake of routine childhood immunisations across Wales. \nNWIS send an extract after the latest refresh cas been carried out. Data is shared via secure file sharing portal","The Quarterly and Annual COVER reports are the means by which uptake of routine childhood immunisation are measured and monitored within Wales. The figures contained within the report are used to identify trends, problems affecting uptake and progress toward the 95% ‘herd immunity’ target. The information contained within these reports informs policy in Wales and national, regional and local levels and is recommended source of data for Local Health Boards when completing Balanced Scorecards and Annual Operating Framework (AOF) returns. ","Immunisations","http://nww.immunisation.wales.nhs.uk/cover","Public","Quarterly  in May, August, November and February\nAnnually in May","Quarterly and Annually","Priority 2 - Working across sectors to improve the future health and wellbeing of our children\n\nPriority 6 - Protecting the public and continuously improving the quality, safety, and effectiveness of the services we deliver\n\n","Simon Cottrelll (Senior Epidemiologist) 029 2010 4528; simon.cottrell@wales.nhs.uk\n\nMalorie Perry (Epidemiologist) 029 2010 4516; malorie.perry@wales.nhs.uk","National Community Child Health Database (NCCHD)","All Wales trends; Local Healthboard level","WAG, Local Health Protection Teams, Immunisation Coordinators, GPs, PHE"]

{"sheet":"VPDP control","index":12,"n_rows":4,"n_cols":8,"rows_kept":4,"cut":false,"hidden":true,"merged":[]}
["Product","Due Date","# Days to complete","PDPs and annual report due:",43251,null,null,"April 1st: 42827"]
[{"$f":"VPDP!$B8&\" - \"&VPDP!$A8","v":"VPDP4 - COVER Report"},"2018-05-01",5,"Cluster action plan due: ",43311,null,null,"July 1st: 42917"]
[null,null,null,"Chart begins:",43191,null,null,"October 1st: 43007"]
[null,null,null,"Chart ends:",43555,null,null,"January 1st: 43097"]

{"sheet":"WAPSU","index":13,"n_rows":5,"n_cols":15,"rows_kept":5,"cut":false,"hidden":false,"merged":[[0,0,0,10]]}
["Welsh Analytics Prescribing Unit Updated 20/09/2018"]
[]
[]
["Product  title:","Product reference:","Product status (e.g. current, proposed):","Other provider input/ co-dependency:","Product summary/ scope:","Best-fit single keyword summary (e.g. diabetes):","Product location/ URL:","Availability (public/ restricted):","Planned release date of product (at least to month):","Frequency of release or one-off?:","Linked strategic priorities:","Enquiries/ primary contact:","Main data source(s) utilised (e.g. Audit+):","Geography(ies) of reporting e.g. LSOA, cluster:","Intended audience(s):"]
["Server for Prescribing Information Reporting and Analysis (SPIRA)","WAPSU1","Current","NWSSP Prescribing Services","Interactive application for comparative analysis of National Prescribing Indicator (NPI) information.\n","Prescribing","http://howis.wales.nhs.uk/sites3/page.cfm?orgid=428&pid=69110","NHS ","Already released, but quarterly updated","Quarterly update with prescribing info","Naional Prescribing Indicators, National Outcome Framework","kath.haines@wales.nhs.uk","NWSSP Prescribing Indicator information","National, Health Board, Locality, Cluster, Practice","Primary Care prescribers, Health Boards, Clusters, Stakeholders"]

{"sheet":"WAPSU control","index":14,"n_rows":4,"n_cols":8,"rows_kept":4,"cut":false,"hidden":true,"merged":[]}
["Product","Due Date","# Days to complete","PDPs and annual report due:",43251,null,null,"April 1st: 42827"]
["End of life","N/A","N/A","Cluster action plan due: ",43311,null,null,"July 1st: 42917"]
["Mental Health and substance misuse","N/A","N/A","Chart begins:",43191,null,null,"October 1st: 43007"]
[null,null,null,"Chart ends:",43555,null,null,"January 1st: 43097"]

{"sheet":"Welsh Cancer Intelligence","index":15,"n_rows":12,"n_cols":15,"rows_kept":12,"cut":false,"hidden":false,"merged":[[0,0,0,10]]}
["Welsh Cancer Intelligence Updated 24/12/2018"]
[]
[]
["Product  title:","Product reference:","Product status (e.g. current, proposed):","Other provider input/ co-dependency:","Product summary/ scope:","Best-fit single keyword summary (e.g. diabetes):","Product location/ URL:","Availability (public/ restricted):","Planned release date of product (at least to month):","Frequency of release or one-off?:","Linked strategic priorities:","Enquiries/ primary contact:","Main data source(s) utilised (e.g. Audit+):","Geography(ies) of reporting e.g. LSOA, cluster:","Intended audience(s):"]
["Cancer mortality in Wales (2017 data)","WCI1","Current",null,"Cancer mortality statistics in Wales from 2001 up to 2017 by cancer type, age band, European age standardised rates and 95% confidence intervals for local authorities and health boards in Wales","Cancer","http://www.wcisu.wales.nhs.uk/cancer-mortality-in-wales","Public","2018-11-29","Annual","Statutory duty","WCU.stats@Wales.nhs.uk ","Office for National Statistics (ONS)","Local Authorities and health boards in Wales","Health professionals"]
["Cancer survival in Wales (2016 data)","WCI2","Current",null,"Cancer survival statistics in Wales from 1995 up to 2016 by cancer type including unstandardised and age standardised survival with 95% confidence intervals for Wales","Cancer",null,"Public","2019-03-01","Annual","Official statistics ","WCU.stats@Wales.nhs.uk ","Welsh Cancer Intelligence and Surveillance Unit (Canisc, PEDW, ONS death certificates, extra regional data)","Wales","Health professionals"]
["Evaluation of the lung cancer awareness campaign in Wales","WCI3","Current",null,"During July and August 2016 a lung cancer awareness campaign was carried out in Wales whereby if a patient had a cough for more than 3 weeks they were urged to visit their GP.  This product evaluates the impact of this in terms of number of GP referrals, radiology, lung cancer cases, stage at diagnosis and cough data to determine whether statistically significant changes were found during this period compared to control periods","Lung cancer",null,"Public","2018-10-01","One off",null,"WCU.stats@Wales.nhs.uk ","WCISU dataset, Canisc, Synchronised Anonymous Information Linkage (SAIL), Welsh Government Urgent Suspected cancer, Welsh Radiology Information System","Health boards in Wales","Health professionals"]
["Cancer incidence in Wales (2016 data)","WCI4","Current",null,"Cancer incidence statistics in Wales from 2001 up to 2015 by cancer type, age band, European age standardised rates and 95% confidence intervals for local authorities and heatlh boards in Wales","Cancer","http://www.wcisu.wales.nhs.uk/cancer-incidence-in-wales-1 ","Public","2019-01-22","Annual","Official statistics product","WCU.stats@Wales.nhs.uk ","Welsh Cancer Intelligence and Surveillance Unit (Canisc, PEDW, ONS death certificates, extra regional data)","Local Authorities and health boards in Wales","Health professionals"]
["GP cluster lung cancer profile","WCI5","Current",null,"7 reports, one for each health board in Wales containing information regarding cancer incidence and cancer survival for lung cancer by GP cluster for the diagnosis period 2009-2013","Cancer","http://www.wcisu.wales.nhs.uk/gp-cluster-lung-cancer-profile","Public","2015-09-01","One off",null,"WCU.stats@Wales.nhs.uk ","Welsh Cancer Intelligence and Surveillance Unit (Canisc, PEDW, ONS death certificates, extra regional data)","Wales, health boards, Cluster","Health professionals"]
["Cancer incidence and prevalence for cluster networks in Wales","WCI6","Current","Macmillan","Statistics at a Cluster Network level for a number of cancer types.  The data is broken down by age band, area deprivation, rurality, sex and cancer stage at diagnosis.  The information is displayed in an interactive dashboard. ","Cancer","http://www.wcisu.wales.nhs.uk/incidence-and-prevalence-by-gp-cluster-n","Public","2018-07-12","One off","Primary care products: phase 1","WCU.stats@Wales.nhs.uk ","WCISU dataset","Wales, health boards, Cluster","Health professionals"]
["Prevalence and outcomes of cancer patients with other chronic health conditions in Wales ","WCI7","Current","Macmillan","Statistics at a Cluster Network level linked with co-morbidity data for a number of cancer types.  The data is broken down for co-morbidities by age band, area deprivation, rurality, sex and cancer stage at diagnosis.  The information is displayed in an interactive dashboard.        ","Cancer",null,"Public","2018-11-01","One-off","Primary care products: phase 2","WCU.stats@Wales.nhs.uk ","WCISU dataset, PEDW","Wales, Cluster network ","Health professionals"]
["The impact of comorbidity with people living with cancer","WCI8","Current","Macmillan Cancer Support","Incidence, prevalence and survival statistics broken down by cancer type, Charlson score and cancer network in Wales","Cancer","http://www.wcisu.wales.nhs.uk/macmillan-wcisu-partnership-1","Public ","2019-02-06","One off","Primary care products: phase 2","WCU.stats@Wales.nhs.uk ","Welsh Cancer Intelligence and Surveillance Unit, NHS Wales Informatics Service","Wales, Health Board, Cluster Networks in Wales","Health professionals"]

{"sheet":"WCI control","index":16,"n_rows":4,"n_cols":8,"rows_kept":4,"cut":false,"hidden":false,"merged":[]}
["Product","Due Date","# Days to complete","PDPs and annual report due:",43251,null,null,"April 1st: 42827"]
[{"$f":"'Welsh Cancer Intelligence'!$B5&\" - \"&'Welsh Cancer Intelligence'!$A5","v":"WCI1 - Cancer mortality in Wales (2017 data)"},{"$f":"'Welsh Cancer Intelligence'!$I$5","v":"2018-11-29"},10,"Cluster action plan due: ",43311,null,null,"July 1st: 42917"]
[{"$f":"'Welsh Cancer Intelligence'!$B6&\" - \"&'Welsh Cancer Intelligence'!$A6","v":"WCI2 - Cancer survival in Wales (2016 data)"},{"$f":"'Welsh Cancer Intelligence'!$I$6","v":"2019-03-01"},10,"Chart begins:",43191,null,null,"October 1st: 43007"]
[{"$f":"'Welsh Cancer Intelligence'!$B8&\" - \"&'Welsh Cancer Intelligence'!$A8","v":"WCI4 - Cancer incidence in Wales (2016 data)"},{"$f":"'Welsh Cancer Intelligence'!$I$7","v":"2018-10-01"},10,"Chart ends:",43555,null,null,"January 1st: 43097"]

{"sheet":"NWIS","index":17,"n_rows":13,"n_cols":15,"rows_kept":13,"cut":false,"hidden":false,"merged":[[0,0,0,10]]}
["NHS Wales Informatics Service Updated 20/09/2018"]
[]
[]
["Product  title:","Product reference:","Product status (e.g. current, proposed):","Other provider input/ co-dependency:","Product summary/ scope:","Best-fit single keyword summary (e.g. diabetes):","Product location/ URL:","Availability (public/ restricted):","Planned release date of product (at least to month):","Frequency of release or one-off?:","Linked strategic priorities:","Enquiries/ primary contact:","Main data source(s) utilised (e.g. Audit+):","Geography(ies) of reporting e.g. LSOA, cluster:","Intended audience(s):"]
["National Diabetes (NDA) audit","NWIS1","Annual reports",null,"The results of the NDA reported to HB and cluster levels","NDA","http://gig01srvisdlogi/pcip/rdPage.aspx?rdReport=Audits.Diabetes.Participation&selIndicator=Participation&rdRnd=81710","NHS Wales","N/A","annual ",null,"nwispcu.information@wales.nhs.uk","Audit+/QOF","Wales / Health Board / Cluster","NHS Wales internal"]
["National Diabetes (NDA) Audit quarterly reports","NWIS2","Quarterly reports",null,"Ongoing monitoring of NDA to cluster and HB levels","Diabetes","http://gig01srvisdlogi/pcip/rdPage.aspx?rdReport=Audits.Diabetes.Participation&selIndicator=Participation&rdRnd=81710","NHS Wales","N/A","Quarterly",null,"nwispcu.information@wales.nhs.uk","Audit+","Wales/HB/Cluster","NHS Wales internal"]
["National Diabetes Audit practice module","NWIS3","Quarterly reports",null,"The module mimics the NDA in the practice systems","Diabetes","http://gig01srvisdlogi/pcip/rdPage.aspx?rdReport=Audits.Diabetes.Participation&selIndicator=Participation&rdRnd=81710","Practices only","N/A","Quarterly",null,"nwispcu.information@wales.nhs.uk","Audit+","Practice/cluster","GP practices"]
["National COPD audit","NWIS4","Annual reports",null,"National COPD audit","COPD","http://gig01srvisdlogi/pcip/rdPage.aspx?rdReport=Audits.CKD.ExecutiveSummary&rdRnd=39595","NHS Wales","N/A","annual ",null,"nwispcu.information@wales.nhs.uk","Audit+/QOF","Wales/HB/Cluster","NHS Wales internal"]
["Ongoing monitoring of COPD audit to cluster and HB levels","NWIS5","Quarterly reports",null,"Ongoing monitoring of COPD audit to cluster and HB levels","COPD","http://gig01srvisdlogi/pcip/rdPage.aspx?rdReport=Audits.CKD.ExecutiveSummary&rdRnd=39595","NHS Wales","N/A","Quarterly",null,"nwispcu.information@wales.nhs.uk","Audit+","Wales/HB/Cluster","NHS Wales internal"]
["The module mimics the COPD in the practice systems","NWIS6","Quarterly reports",null,"The module mimics the COPD in the practice systems","COPD","http://gig01srvisdlogi/pcip/rdPage.aspx?rdReport=Audits.CKD.ExecutiveSummary&rdRnd=39595","Practices only","N/A","Quarterly",null,"nwispcu.information@wales.nhs.uk","Audit+","Practice/cluster","GP practices"]
["Chronic Kidney Disease","NWIS7","Quarterly reports",null,"Chronic Kidney Disease","CKD","http://gig01srvisdlogi/pcip/rdPage.aspx?rdReport=Audits.CKD.ExecutiveSummary&rdRnd=94135","NHS Wales","N/A","Quarterly",null,"NWISPCU.Information@wales.nhs.uk","Audit+","Wales/HB/Cluster","NHS Wales internal"]
["QOF active & retired Indicators 2017/2018","NWIS8","Quarterly reports",null,"QOF active & retired Indicators 2017/2018","QOF","http://gig01srvisdlogi/pcip/rdPage.aspx?rdReport=Default&rdRnd=71145","NHS Wales","N/A","Quarterly",null,"NWISPCU.Information@wales.nhs.uk","Audit+","Wales/HB/Cluster","NHS Wales internal"]
["Co-morbidities","NWIS10","In progress, release date TBA",null,"Co-morbidities. The development of a data extraction module in Audit+ to enable  co-morbidity analysis (initially based on current QOF registers) at the all-Wales, LHB, Cluster and Practice level. The functionality will provide users with the ability to choose combinations of morbidities to explore (small number rules will be applied).\n\nPilot work is currently being undertaken with one GP Practice\n","Co-morbidities","Primary Care Information Portal","NHS Wales","2017/2018","TBC",null,"nwispcu.information@wales.nhs.uk","Audit+","Wales/HB/Cluster","NHS Wales internal"]

{"sheet":"Observatory control","index":18,"n_rows":13,"n_cols":8,"rows_kept":13,"cut":false,"hidden":true,"merged":[]}
["Product","Due Date","# Days to complete","PDPs and annual report due:","2018-05-31",null,null,"April 1st: 42827"]
[{"$f":"Observatory!$B5&\" - \"&Observatory!$A5","v":"OBS1 - CHD - Coronary Heart Disease modelled prevalence analysis (2015)"},{"$f":"Observatory!I5","v":"N/A"},3,"Cluster action plan due: ","2018-07-30",null,null,"July 1st: 42917"]
[{"$f":"Observatory!$B6&\" - \"&Observatory!$A6","v":"OBS2 - Demography - Demography 2016"},{"$f":"Observatory!I6","v":"N/A"},3,"Chart begins:","2018-04-01",null,null,"October 1st: 43007"]
[{"$f":"Observatory!$B7&\" - \"&Observatory!$A7","v":"OBS3 - Ethnicity - Ethnicity and health"},{"$f":"Observatory!I7","v":"N/A"},3,"Chart ends:","2019-03-31",null,null,"January 1st: 43097"]
[{"$f":"Observatory!$B8&\" - \"&Observatory!$A8","v":"OBS4 - Cluster - GP Cluster Profiles 2013"},{"$f":"Observatory!I8","v":"N/A"},3]
[{"$f":"Observatory!$B9&\" - \"&Observatory!$A9","v":"OBS5 - Population - General Practice Population Profiles (2015)"},{"$f":"Observatory!I9","v":"N/A"},3]
[{"$f":"Observatory!$B10&\" - \"&Observatory!$A10","v":"OBS6 - Assets - Health assets reporting tool"},{"$f":"Observatory!I10","v":"N/A"},3]
[{"$f":"Observatory!$B11&\" - \"&Observatory!$A11","v":"OBS7 - Inequalities - Measuring Inequalities 2016"},{"$f":"Observatory!I11","v":"N/A"},3,"OBS9 - PHOF Q1","OBS9 - PHOF Q2","OBS9 - PHOF Q3","OBS9 - PHOF Q4"]
[{"$f":"Observatory!$B12&\" - \"&Observatory!$A12","v":"OBS8 - Pregnancy - Pregnancy and childhood surveillance tool (2017)"},{"$f":"Observatory!I12","v":"N/A"},3,3,3,3,3]
[{"$f":"Observatory!$B13&\" - \"&Observatory!$A13","v":"OBS9 - Well-being - Public Health Outcomes Framework"},{"$f":"Observatory!I13","v":"Update scheduled for September 2017"},3,43271,43363,43454,43544]
[{"$f":"Observatory!$B14&\" - \"&Observatory!$A14","v":"OBS10 - QOF(AF) - Quality and Outcomes Framework: atrial fibrillation and hypertension data"},{"$f":"Observatory!I14","v":"N/A"},3]
[{"$f":"Observatory!$B15&\" - \"&Observatory!$A15","v":"OBS11 - Teenage - Ward level teenage conceptions by health board"},{"$f":"Observatory!I15","v":"N/A"},3]
[{"$f":"Observatory!$B16&\" - \"&Observatory!$A16","v":"OBS12 - Survey - Welsh health survey trends"},{"$f":"Observatory!I16","v":"N/A"},3]

{"sheet":"SAIL control","index":19,"n_rows":4,"n_cols":8,"rows_kept":4,"cut":false,"hidden":true,"merged":[]}
["Product","Due Date","# Days to complete","PDPs and annual report due:",42886,null,null,"April 1st: 42827"]
["End of life","N/A","N/A","Cluster action plan due: ",42946,null,null,"July 1st: 42917"]
["Mental Health and substance misuse","N/A","N/A",null,null,null,null,"October 1st: 43007"]
[null,null,null,null,null,null,null,"January 1st: 43097"]

{"sheet":"Oral health control","index":20,"n_rows":10,"n_cols":8,"rows_kept":10,"cut":false,"hidden":true,"merged":[]}
["Product","Due Date","# Days to complete","PDPs and annual report due:",43251,null,null,"April 1st: 42827"]
["Oral Health Surveillance Data","2018-06-01",14,"Cluster action plan due: ",43311,null,null,"May 1st: 42857"]
[null,null,null,null,null,null,null,"June 1st: 42887"]
[null,null,null,null,null,null,null,"July 1st: 42917"]
[null,null,null,null,null,null,null,"August 1st: 42947"]
[null,null,null,null,null,null,null,"September 1st:42977"]
[null,null,null,null,null,null,null,"October 1st: 43007"]
[null,null,null,null,null,null,null,"November 1st: 43037"]
[null,null,null,null,null,null,null,"December 1st: 43067"]
[null,null,null,null,null,null,null,"January 1st: 43097"]

{"sheet":"NWIS control","index":21,"n_rows":5,"n_cols":8,"rows_kept":5,"cut":false,"hidden":true,"merged":[]}
["Product","Due Date","# Days to complete","PDPs and annual report due:",42886,null,null,"April 1st: 42827"]
[{"$f":"'Welsh Cancer Intelligence'!$B5&\" - \"&'Welsh Cancer Intelligence'!$A5","v":"WCI1 - Cancer mortality in Wales (2017 data)"},{"$f":"'Welsh Cancer Intelligence'!$I$5","v":"2018-11-29"},8,"Cluster action plan due: ",42946,null,null,"July 1st: 42917"]
[{"$f":"'Welsh Cancer Intelligence'!$B6&\" - \"&'Welsh Cancer Intelligence'!$A6","v":"WCI2 - Cancer survival in Wales (2016 data)"},{"$f":"'Welsh Cancer Intelligence'!$I$6","v":"2019-03-01"},8,null,null,null,null,"October 1st: 43007"]
[{"$f":"'Welsh Cancer Intelligence'!$B7&\" - \"&'Welsh Cancer Intelligence'!$A7","v":"WCI3 - Evaluation of the lung cancer awareness campaign in Wales"},{"$f":"'Welsh Cancer Intelligence'!$I$7","v":"2018-10-01"},8,null,null,null,null,"January 1st: 43097"]
[{"$f":"'Welsh Cancer Intelligence'!$B8&\" - \"&'Welsh Cancer Intelligence'!$A8","v":"WCI4 - Cancer incidence in Wales (2016 data)"},{"$f":"'Welsh Cancer Intelligence'!$I$8","v":"2019-01-22"},8]